bitfinex-derivatives/quotes_BTCF0:USTF0_20250915
["timestamp","ask_amount","ask_price","bid_price","bid_amount"]
[1757953455635,0.41484932,114820.0,114810.0,0.63220355]
[1757953455931,0.41784932,114820.0,114810.0,0.63220355]
[1757953456731,1.22432932,114820.0,114810.0,0.63220355]
[1757953457234,0.41784932,114820.0,114810.0,0.63220355]
[1757953458130,0.72742287,114820.0,114810.0,0.63220355]
[1757953459133,1.53386287,114820.0,114810.0,0.63220355]
[1757953459533,1.22428932,114820.0,114810.0,0.63220355]
[1757953459729,1.53386287,114820.0,114810.0,0.63220355]
[1757953460134,1.22428932,114820.0,114810.0,0.63220355]
[1757953460832,1.53386287,114820.0,114810.0,0.63220355]
[1757953462531,1.22428932,114820.0,114810.0,0.63220355]
[1757953462731,1.22428932,114820.0,114810.0,0.32263]
[1757953462932,1.22428932,114820.0,114810.0,0.63220355]
[1757953463133,1.22424932,114820.0,114810.0,0.63220355]
[1757953463730,0.41784932,114820.0,114810.0,0.63220355]
[1757953464534,0.72742287,114820.0,114810.0,0.63220355]
[1757953466133,1.53378287,114820.0,114810.0,0.63220355]
[1757953466842,1.53378287,114820.0,114810.0,0.32263]
[1757953467036,1.53378287,114820.0,114810.0,0.63220355]
[1757953470138,1.53378287,114820.0,114800.0,0.33251355]
[1757953470139,0.03484,114810.0,114800.0,0.33251355]
[1757953470446,0.72741287,114810.0,114800.0,0.05]
[1757953470745,0.03484,114800.0,114790.0,0.33251355]
[1757953471043,0.38429139,114800.0,114790.0,0.61241355]
[1757953471244,0.38329139,114800.0,114790.0,0.61241355]
[1757953471437,0.74309139,114800.0,114790.0,0.61241355]
[1757953472341,0.74409139,114800.0,114790.0,0.61341355]
[1757953473038,0.74409139,114800.0,114790.0,0.30384]
[1757953473238,0.74409139,114800.0,114790.0,0.61341355]
[1757953473442,0.74409139,114800.0,114790.0,0.61541355]
[1757953474341,0.74409139,114800.0,114790.0,0.30584]
[1757953474544,0.81377778,114800.0,114790.0,0.61541355]
[1757953475348,1.62005778,114800.0,114790.0,0.61541355]
[1757953475647,1.62001778,114800.0,114790.0,0.61541355]
[1757953475846,1.31044423,114800.0,114790.0,0.30584]
[1757953476243,0.50420423,114800.0,114790.0,0.30584]
[1757953476451,1.31044423,114800.0,114790.0,0.61576613]
[1757953477251,1.31934909,114800.0,114790.0,0.61576613]
[1757953477547,1.35066126,114800.0,114790.0,0.61576613]
[1757953478653,0.98986126,114800.0,114790.0,0.61576613]
[1757953478857,0.18362126,114800.0,114790.0,0.61576613]
[1757953479045,0.95854909,114800.0,114790.0,0.61576613]
[1757953479444,0.98986126,114800.0,114790.0,0.61576613]
[1757953480652,0.18362126,114800.0,114790.0,0.61576613]
[1757953480848,0.98986126,114800.0,114790.0,0.61576613]
[1757953481354,0.17205126,114800.0,114790.0,0.87516613]
[1757953481853,0.14073909,114800.0,114790.0,0.87516613]
[1757953482454,0.11946909,114800.0,114790.0,1.68136613]
[1757953483656,0.11946909,114800.0,114790.0,0.87516613]
[1757953483955,0.14073909,114800.0,114790.0,0.87516613]
[1757953484655,0.15430909,114800.0,114790.0,0.86576613]
[1757953484855,0.18562126,114800.0,114790.0,0.30584]
[1757953485246,0.18562126,114800.0,114790.0,0.61576613]
[1757953489456,0.15430909,114800.0,114790.0,0.61576613]
[1757953491161,0.85634739,114800.0,114790.0,0.283]
[1757953491549,0.90331564,114800.0,114790.0,0.283]
[1757953491863,0.90331564,114800.0,114790.0,0.30584]
[1757953494360,1.70931564,114800.0,114790.0,0.30584]
[1757953495367,1.67800347,114800.0,114790.0,0.30584]
[1757953496568,0.87200347,114800.0,114790.0,0.30584]
[1757953496870,1.67796347,114800.0,114790.0,0.30584]
[1757953497170,1.67785502,114800.0,114790.0,0.30584]
[1757953499776,0.87189502,114800.0,114790.0,0.30584]
[1757953499976,1.67785502,114800.0,114790.0,0.30584]
[1757953500468,1.36792889,114800.0,114790.0,0.30584]
[1757953501175,0.56196889,114800.0,114790.0,0.30584]
[1757953501375,1.36788889,114800.0,114790.0,0.30584]
[1757953501676,1.36788889,114800.0,114790.0,0.61576613]
[1757953501872,1.39919432,114800.0,114790.0,0.61576613]
[1757953502276,1.39919432,114800.0,114790.0,0.33576613]
[1757953502477,1.35222607,114800.0,114790.0,0.34842613]
[1757953502976,1.35222607,114800.0,114790.0,0.47842613]
[1757953503279,1.35218607,114800.0,114790.0,0.63842613]
[1757953503479,0.51500064,114800.0,114790.0,0.88842613]
[1757953504176,0.51500064,114800.0,114790.0,0.56584]
[1757953504372,0.51500064,114800.0,114790.0,0.87576613]
[1757953506079,0.51500064,114800.0,114790.0,0.58576613]
[1757953506482,0.82492677,114800.0,114790.0,0.02584]
[1757953506779,0.8562322,114800.0,114790.0,0.02584]
[1757953506979,1.1062322,114800.0,114790.0,0.003]
[1757953507180,1.15320045,114800.0,114790.0,0.003]
[1757953507574,1.15320045,114800.0,114790.0,0.02483]
[1757953509582,0.84327432,114800.0,114790.0,0.02483]
[1757953509979,1.60210607,114800.0,114790.0,0.02483]
[1757953510481,1.64903432,114800.0,114790.0,0.33475613]
[1757953513189,1.64903432,114800.0,114790.0,0.61475613]
[1757953513491,1.64903432,114800.0,114790.0,0.33475613]
[1757953516385,1.64903432,114800.0,114790.0,0.02483]
[1757953517087,1.62694345,114800.0,114790.0,0.02483]
[1757953517282,1.64901131,114800.0,114790.0,0.02483]
[1757953517482,1.60204306,114800.0,114790.0,0.02483]
[1757953518286,1.64901131,114800.0,114790.0,0.02483]
[1757953519385,1.64901131,114800.0,114790.0,0.33475613]
[1757953519987,1.64901131,114800.0,114790.0,0.02483]
[1757953522385,1.67763201,114800.0,114790.0,0.003]
[1757953527892,0.01279,114790.0,114780.0,0.0001]
[1757953528093,0.01279,114780.0,114770.0,0.0001]
[1757953528288,0.03595,114770.0,114760.0,0.04378373]
[1757953528484,0.05801786,114770.0,114760.0,0.65360986]
[1757953528992,0.05601786,114770.0,114760.0,0.65360986]
[1757953529494,0.05801786,114770.0,114760.0,0.65460986]
[1757953529994,0.05901786,114770.0,114760.0,0.65860986]
[1757953531094,0.41981786,114770.0,114760.0,0.34868373]
[1757953531495,0.41981786,114770.0,114760.0,0.65860986]
[1757953531696,0.41781786,114770.0,114760.0,0.63405613]
[1757953531896,0.41881786,114770.0,114760.0,0.63405613]
[1757953532096,0.41881786,114770.0,114760.0,0.32413]
[1757953532494,0.42181786,114770.0,114760.0,0.63405613]
[1757953532889,0.74906814,114770.0,114760.0,0.32413]
[1757953533195,0.78034816,114770.0,114760.0,0.301]
[1757953533402,1.58574816,114770.0,114760.0,0.301]
[1757953534994,0.78034816,114770.0,114760.0,0.301]
[1757953535298,1.56842401,114770.0,114760.0,0.32413]
[1757953535801,1.56859406,114770.0,114760.0,0.63422618]
[1757953536198,0.76319406,114770.0,114760.0,0.63422618]
[1757953536394,1.56859406,114770.0,114760.0,0.63422618]
[1757953537293,1.22721786,114770.0,114760.0,0.94432236]
[1757953538899,0.06101786,114770.0,114760.0,0.94432236]
[1757953539108,0.86637786,114770.0,114760.0,1.19432236]
[1757953539300,0.86637786,114770.0,114760.0,0.32413]
[1757953539503,0.86637786,114770.0,114760.0,0.94432236]
[1757953540906,0.86637786,114770.0,114760.0,0.32413]
[1757953541100,0.86637786,114770.0,114760.0,0.94432236]
[1757953543505,0.86637786,114770.0,114760.0,0.32413]
[1757953543705,0.86637786,114770.0,114760.0,0.94432236]
[1757953546009,1.53727404,114770.0,114760.0,0.94432236]
[1757953547111,1.2271244,114770.0,114760.0,0.94432236]
[1757953548506,0.8663244,114770.0,114760.0,0.94432236]
[1757953550005,1.2271244,114770.0,114760.0,0.91432236]
[1757953550203,1.2271244,114770.0,114760.0,0.64432236]
[1757953551615,1.2271244,114770.0,114760.0,0.90432236]
[1757953551810,1.2271244,114770.0,114760.0,0.88432236]
[1757953552006,1.2271244,114770.0,114760.0,0.64432236]
[1757953552511,1.2271244,114770.0,114760.0,0.89432236]
[1757953552709,1.2271244,114770.0,114760.0,0.64432236]
[1757953556310,1.2271244,114770.0,114760.0,0.92432236]
[1757953557415,0.4217644,114770.0,114760.0,0.92432236]
[1757953557614,1.2268044,114770.0,114760.0,0.92432236]
[1757953558620,1.2268044,114770.0,114760.0,0.30413]
[1757953558914,1.2268044,114770.0,114760.0,0.92432236]
[1757953559314,0.8660044,114770.0,114760.0,0.92432236]
[1757953560218,0.0501744,114770.0,114760.0,0.92990236]
[1757953560421,0.0270144,114770.0,114760.0,3.20785854]
[1757953560617,0.0270144,114770.0,114760.0,3.21785854]
[1757953560820,0.0270144,114770.0,114760.0,2.91785854]
[1757953562118,0.005,114770.0,114760.0,2.91785854]
[1757953564826,0.005,114770.0,114760.0,2.65575854]
[1757953566325,0.005,114770.0,114760.0,2.65559854]
[1757953567628,0.005,114770.0,114760.0,1.85079854]
[1757953567819,0.005,114770.0,114760.0,0.92051]
[1757953568024,0.005,114770.0,114760.0,2.65551854]
[1757953569730,0.005,114770.0,114760.0,2.34542236]
[1757953570828,0.02774,114770.0,114760.0,0.93261]
[1757953571023,0.37280025,114770.0,114760.0,2.38186236]
[1757953571534,0.06270407,114770.0,114760.0,2.38186236]
[1757953572933,0.06270407,114770.0,114760.0,1.76167]
[1757953573236,0.06270407,114770.0,114760.0,2.38186236]
[1757953573931,0.06270407,114770.0,114760.0,1.76167]
[1757953574130,0.06270407,114770.0,114760.0,2.38186236]
[1757953574533,0.06270407,114770.0,114760.0,2.02106236]
[1757953576539,0.06270407,114770.0,114760.0,1.21642236]
[1757953576740,0.06270407,114770.0,114760.0,1.75884236]
[1757953577440,0.06270407,114770.0,114760.0,0.95432236]
[1757953577641,0.06270407,114770.0,114760.0,1.75880236]
[1757953580338,0.04980407,114770.0,114760.0,1.75438236]
[1757953583144,0.04980407,114770.0,114760.0,2.11518236]
[1757953583340,0.02706407,114770.0,114760.0,2.11518236]
[1757953584038,0.02706407,114770.0,114760.0,2.42527854]
[1757953584239,0.02706407,114770.0,114760.0,2.72527854]
[1757953584438,0.005,114770.0,114760.0,2.72527854]
[1757953584645,0.005,114770.0,114760.0,2.42527854]
[1757953585342,0.0001,114780.0,114760.0,2.99527854]
[1757953585645,0.02216468,114780.0,114770.0,1.01162236]
[1757953585839,0.02206468,114780.0,114770.0,1.34162236]
[1757953586647,0.02406468,114780.0,114770.0,1.34162236]
[1757953587040,0.02406468,114780.0,114770.0,1.60372236]
[1757953587344,0.02406468,114780.0,114770.0,1.85372236]
[1757953587744,0.002,114780.0,114770.0,1.85372236]
[1757953588240,0.003,114780.0,114770.0,2.65892236]
[1757953588541,0.003,114780.0,114770.0,2.65888236]
[1757953589240,0.02337,114790.0,114780.0,0.03101]
[1757953589446,0.04532963,114790.0,114780.0,1.32200236]
[1757953589847,0.04532963,114790.0,114780.0,2.12612236]
[1757953590050,0.04532963,114790.0,114780.0,1.32200236]
[1757953590242,0.04532963,114790.0,114780.0,2.12612236]
[1757953590741,0.04532963,114790.0,114780.0,0.70181]
[1757953590947,0.04532963,114790.0,114780.0,2.12608236]
[1757953591746,0.04732963,114790.0,114780.0,2.12708236]
[1757953591946,0.04832963,114790.0,114780.0,2.12708236]
[1757953592149,0.04632963,114790.0,114780.0,2.12604236]
[1757953592345,0.04832963,114790.0,114780.0,2.12704236]
[1757953593047,0.04832963,114790.0,114780.0,1.32300236]
[1757953593243,0.04832963,114790.0,114780.0,2.12704236]
[1757953595548,0.04832963,114790.0,114780.0,0.08201]
[1757953595749,0.04832963,114790.0,114780.0,1.79616236]
[1757953596351,0.06172963,114790.0,114780.0,1.13722]
[1757953596539,0.04832963,114790.0,114780.0,1.75741236]
[1757953596744,0.04832963,114790.0,114780.0,1.76612236]
[1757953597851,0.04832963,114790.0,114780.0,1.45582684]
[1757953599947,0.06172963,114790.0,114780.0,0.0233]
[1757953600155,0.67252963,114790.0,114780.0,0.3533]
[1757953601348,0.98242647,114790.0,114780.0,0.0733]
[1757953601548,1.78622647,114790.0,114780.0,0.0733]
[1757953601755,1.83547685,114790.0,114780.0,0.051]
[1757953601948,1.83547685,114790.0,114780.0,0.001]
[1757953602751,1.83547685,114790.0,114780.0,0.0233]
[1757953603856,1.03167685,114790.0,114780.0,0.0233]
[1757953604056,1.83547685,114790.0,114780.0,0.0233]
[1757953606258,0.72178001,114790.0,114780.0,0.3033]
[1757953606453,1.52554001,114790.0,114780.0,0.61319684]
[1757953607361,0.47178001,114790.0,114780.0,0.66319684]
[1757953607561,0.88345999,114790.0,114780.0,0.64319684]
[1757953608263,0.07969999,114790.0,114780.0,0.64319684]
[1757953608657,0.07969999,114790.0,114780.0,0.3333]
[1757953608856,0.07969999,114790.0,114780.0,0.64319684]
[1757953609461,0.88341999,114790.0,114780.0,0.64319684]
[1757953610263,0.91470001,114790.0,114780.0,0.64319684]
[1757953611455,0.11098001,114790.0,114780.0,0.64319684]
[1757953611657,0.91470001,114790.0,114780.0,0.64319684]
[1757953614965,0.07969999,114790.0,114780.0,0.64319684]
[1757953615165,0.88337999,114790.0,114780.0,0.64319684]
[1757953616666,0.88333999,114790.0,114780.0,0.64319684]
[1757953617270,0.88331777,114790.0,114780.0,0.64319684]
[1757953617863,0.88331777,114790.0,114780.0,0.3333]
[1757953618165,0.88331777,114790.0,114780.0,0.96249368]
[1757953618565,0.88331777,114790.0,114780.0,0.65259684]
[1757953619169,0.06627777,114790.0,114780.0,0.65259684]
[1757953620669,0.04300777,114790.0,114780.0,1.57329368]
[1757953621373,0.04300777,114790.0,114780.0,2.37689368]
[1757953622968,0.04300777,114790.0,114780.0,2.66689368]
[1757953623474,0.04300777,114790.0,114780.0,2.37689368]
[1757953623671,0.02097036,114790.0,114780.0,2.94689368]
[1757953624173,0.0001,114800.0,114790.0,0.00966]
[1757953624372,0.03959669,114810.0,114790.0,1.03311684]
[1757953624666,0.03959217,114810.0,114800.0,1.50255684]
[1757953624871,0.03949217,114810.0,114800.0,1.85255684]
[1757953625073,0.10957647,114810.0,114800.0,1.85255684]
[1757953625267,0.03949217,114810.0,114800.0,1.04903684]
[1757953625468,0.03949217,114810.0,114800.0,1.85255684]
[1757953625669,0.03949217,114810.0,114800.0,2.16245368]
[1757953625864,0.02202215,114810.0,114800.0,2.7726024]
[1757953626070,0.0001,114820.0,114800.0,2.7726024]
[1757953626266,0.05360315,114820.0,114810.0,1.81554368]
[1757953626473,0.05350315,114820.0,114810.0,2.12554368]
[1757953626774,0.06625315,114820.0,114810.0,0.69356]
[1757953626971,0.06625315,114820.0,114810.0,0.33276]
[1757953626972,0.62614999,114820.0,114810.0,0.33276]
[1757953627176,1.86088428,114820.0,114810.0,0.31]
[1757953627669,1.86088428,114820.0,114800.0,0.0011]
[1757953627873,0.03567,114810.0,114800.0,0.32386]
[1757953628075,0.05768831,114810.0,114800.0,0.32376]
[1757953629571,0.05768831,114810.0,114800.0,0.32276]
[1757953629777,0.41848831,114810.0,114800.0,0.32276]
[1757953630381,0.97838515,114810.0,114800.0,0.32276]
[1757953630781,0.98338515,114810.0,114800.0,0.32376]
[1757953631370,0.98338515,114810.0,114800.0,0.02376]
[1757953631776,0.98338515,114810.0,114800.0,0.001]
[1757953632385,0.98338515,114810.0,114800.0,0.02376]
[1757953632882,1.29328199,114810.0,114800.0,0.001]
[1757953633084,1.32456201,114810.0,114800.0,0.001]
[1757953633486,1.37149506,114810.0,114800.0,0.001]
[1757953634183,1.37149506,114810.0,114800.0,0.001]
[1757953635481,0.75170138,114810.0,114800.0,0.001]
[1757953635689,1.06159822,114810.0,114800.0,0.001]
[1757953635904,1.86487822,114810.0,114800.0,0.001]
[1757953636093,1.06159822,114810.0,114800.0,0.001]
[1757953636386,1.86487822,114810.0,114800.0,0.001]
[1757953636588,1.06159822,114810.0,114800.0,0.001]
[1757953636789,1.01466517,114810.0,114800.0,0.001]
[1757953636977,1.81793163,114810.0,114800.0,0.001]
[1757953642291,1.01465163,114810.0,114800.0,0.001]
[1757953642491,1.81789163,114810.0,114800.0,0.001]
[1757953643191,1.56789163,114810.0,114800.0,0.001]
[1757953644286,1.92472152,114810.0,114800.0,0.001]
[1757953644592,1.92472152,114810.0,114760.0,0.69345684]
[1757953644593,0.03567,114770.0,114760.0,0.69345684]
[1757953644794,0.03567,114770.0,114760.0,0.65265684]
[1757953645285,0.10424595,114770.0,114760.0,0.65265684]
[1757953645491,0.12625399,114770.0,114760.0,0.65265684]
[1757953645689,0.12725399,114770.0,114760.0,0.65465684]
[1757953645894,0.12825399,114770.0,114760.0,0.65865684]
[1757953647497,0.12825399,114770.0,114760.0,0.34876]
[1757953647891,0.49780197,114770.0,114760.0,0.65865684]
[1757953648097,1.30100197,114770.0,114760.0,0.65865684]
[1757953648493,1.30104197,114770.0,114760.0,0.65865684]
[1757953650408,0.49780197,114770.0,114760.0,0.65865684]
[1757953650601,1.30104197,114770.0,114760.0,0.65865684]
[1757953651491,0.49780197,114770.0,114760.0,0.65865684]
[1757953651699,1.30100197,114770.0,114760.0,0.65865684]
[1757953652001,0.49780197,114770.0,114760.0,0.65865684]
[1757953653515,0.49780197,114770.0,114760.0,0.34876]
[1757953653803,0.49780197,114770.0,114760.0,0.65865684]
[1757953654102,0.13700197,114770.0,114760.0,0.65865684]
[1757953654305,0.13700197,114770.0,114760.0,0.34876]
[1757953654506,0.13700197,114770.0,114760.0,0.65865684]
[1757953655008,0.09258399,114770.0,114760.0,0.66831684]
[1757953655193,0.09258399,114770.0,114760.0,1.27911684]
[1757953657001,0.07057595,114770.0,114760.0,1.27911684]
[1757953657201,0.09258753,114770.0,114760.0,1.27911684]
[1757953657904,0.09258753,114770.0,114760.0,2.39232412]
[1757953658707,0.10119224,114770.0,114760.0,2.39232412]
[1757953659304,0.10119224,114770.0,114760.0,2.14232412]
[1757953659804,0.10120953,114770.0,114760.0,2.14232412]
[1757953660204,0.10120953,114770.0,114760.0,1.33916412]
[1757953661300,0.13793953,114770.0,114760.0,0.70956]
[1757953661507,0.13793953,114770.0,114760.0,1.32950412]
[1757953662503,0.13793953,114770.0,114760.0,0.96870412]
[1757953663406,0.13793953,114770.0,114760.0,0.34876]
[1757953663706,0.13793953,114770.0,114760.0,0.96870412]
[1757953665105,0.13793953,114770.0,114760.0,0.34876]
[1757953665307,0.13793953,114770.0,114760.0,0.96870412]
[1757953665614,0.13793953,114770.0,114760.0,0.64870412]
[1757953665814,0.13793953,114770.0,114760.0,0.91870412]
[1757953666306,0.13793953,114770.0,114760.0,0.93870412]
[1757953666504,0.13795893,114770.0,114760.0,0.93870412]
[1757953666703,0.13795893,114770.0,114760.0,0.64870412]
[1757953666904,0.12422893,114770.0,114760.0,0.94836412]
[1757953670205,0.12422893,114770.0,114760.0,0.65836412]
[1757953670407,0.12422893,114770.0,114760.0,1.31916412]
[1757953671097,0.11562422,114770.0,114760.0,1.31916412]
[1757953673509,0.80869984,114770.0,114760.0,0.32876]
[1757953673705,1.08997027,114770.0,114760.0,0.306]
[1757953673903,1.10560548,114770.0,114760.0,0.306]
[1757953674304,1.10560548,114770.0,114760.0,0.056]
[1757953674505,1.09003587,114770.0,114760.0,0.056]
[1757953675411,1.08903587,114770.0,114760.0,0.052]
[1757953675606,1.09003587,114770.0,114760.0,0.054]
[1757953676311,1.89307587,114770.0,114760.0,0.054]
[1757953676710,1.09003587,114770.0,114760.0,0.0769]
[1757953676910,1.89207587,114770.0,114760.0,0.0749]
[1757953677110,1.89307587,114770.0,114760.0,0.0769]
[1757953677414,1.89307587,114770.0,114760.0,0.054]
[1757953678414,0.78006381,114770.0,114760.0,0.07556]
[1757953678616,1.89307587,114770.0,114760.0,0.38553206]
[1757953679108,1.09003587,114770.0,114760.0,0.38553206]
[1757953679308,1.89307587,114770.0,114760.0,0.38553206]
[1757953679916,1.58310381,114770.0,114760.0,0.07556]
[1757953680217,1.89307587,114770.0,114760.0,0.38553206]
[1757953681215,1.58310381,114770.0,114760.0,0.38553206]
[1757953681517,1.89307587,114770.0,114760.0,0.38553206]
[1757953682019,1.89307587,114770.0,114760.0,0.33553206]
[1757953685319,1.58310381,114770.0,114760.0,0.33553206]
[1757953685515,0.53006381,114770.0,114760.0,0.88550412]
[1757953685711,1.33306381,114770.0,114760.0,0.92550412]
[1757953685910,1.33306381,114770.0,114760.0,0.89550412]
[1757953686217,1.33306381,114770.0,114760.0,0.64550412]
[1757953686923,1.33306381,114770.0,114760.0,0.02556]
[1757953687124,1.64303587,114770.0,114760.0,0.64550412]
[1757953687624,1.64303587,114770.0,114760.0,0.33553206]
[1757953688026,1.33306381,114770.0,114760.0,0.91550412]
[1757953688220,1.61169984,114770.0,114760.0,0.90550412]
[1757953688622,1.30172778,114770.0,114760.0,0.90550412]
[1757953688825,1.30172778,114770.0,114760.0,0.64550412]
[1757953690317,1.30172778,114770.0,114760.0,0.90550412]
[1757953692228,1.30172778,114770.0,114760.0,0.64550412]
[1757953693233,1.61169984,114770.0,114760.0,0.02556]
[1757953693432,1.61169984,114770.0,114760.0,0.31397206]
[1757953693633,1.30172778,114770.0,114760.0,0.004]
[1757953693932,1.64303587,114770.0,114760.0,0.31397206]
[1757953694832,1.64303587,114770.0,114760.0,0.33553206]
[1757953695235,1.64303587,114770.0,114760.0,0.31397206]
[1757953695734,1.64303587,114770.0,114760.0,0.33553206]
[1757953696739,1.64303587,114770.0,114760.0,0.02556]
[1757953697032,1.64303587,114770.0,114760.0,0.33553206]
[1757953698932,1.33306381,114770.0,114760.0,0.33553206]
[1757953699237,1.33306381,114770.0,114760.0,0.92550412]
[1757953699238,0.53006381,114770.0,114760.0,0.92550412]
[1757953699434,1.64291587,114770.0,114760.0,0.02556]
[1757953699630,1.64291587,114770.0,114760.0,0.64550412]
[1757953699824,1.64291587,114770.0,114760.0,0.90550412]
[1757953700436,1.64291587,114770.0,114760.0,0.64550412]
[1757953701340,1.68982151,114770.0,114760.0,0.64550412]
[1757953702139,0.88694151,114770.0,114760.0,0.33553206]
[1757953702327,1.68982151,114770.0,114760.0,0.33553206]
[1757953703335,0.88694151,114770.0,114760.0,0.33553206]
[1757953703530,1.68978151,114770.0,114760.0,0.64550412]
[1757953703837,1.68978151,114770.0,114760.0,0.69550412]
[1757953704540,0.57696945,114770.0,114760.0,0.69550412]
[1757953704738,1.37980945,114770.0,114760.0,0.64550412]
[1757953705041,1.37980945,114770.0,114760.0,0.97550412]
[1757953706640,0.57696945,114770.0,114760.0,0.97550412]
[1757953707244,1.37976945,114770.0,114760.0,0.97550412]
[1757953707943,0.57696945,114770.0,114760.0,0.97550412]
[1757953708136,1.37976945,114770.0,114760.0,0.97550412]
[1757953708337,0.16926381,114770.0,114760.0,1.18550412]
[1757953708536,0.95858381,114770.0,114760.0,1.19421412]
[1757953708750,0.97166381,114770.0,114760.0,1.18550412]
[1757953710359,0.97166381,114770.0,114760.0,0.56556]
[1757953710537,0.97166381,114770.0,114760.0,1.18550412]
[1757953714347,0.97166381,114770.0,114760.0,0.56556]
[1757953714543,0.97166381,114770.0,114760.0,1.18550412]
[1757953716444,0.97164168,114770.0,114760.0,0.56556]
[1757953716646,0.97164168,114770.0,114760.0,1.18550412]
[1757953717439,1.33244168,114770.0,114760.0,1.18550412]
[1757953718044,0.97164168,114770.0,114760.0,1.18550412]
[1757953718245,0.94030565,114770.0,114760.0,1.18550412]
[1757953718640,0.02402614,114770.0,114760.0,1.50418618]
[1757953718841,0.02402614,114770.0,114760.0,1.86498618]
[1757953719445,0.02402614,114770.0,114760.0,1.61498618]
[1757953719645,0.02402614,114770.0,114760.0,1.30501412]
[1757953719848,0.02402614,114770.0,114760.0,0.99500971]
[1757953722849,0.02402614,114770.0,114760.0,1.50710971]
[1757953723247,0.02402614,114770.0,114760.0,2.30970971]
[1757953724554,0.02402614,114770.0,114760.0,1.50710971]
[1757953724751,0.02402614,114770.0,114760.0,2.05966971]
[1757953725338,0.02402614,114770.0,114760.0,1.79756971]
[1757953725547,0.02402614,114770.0,114760.0,0.99500971]
[1757953725749,0.06011614,114770.0,114760.0,1.11808]
[1757953726043,0.31011614,114770.0,114760.0,0.31556]
[1757953726550,0.67091614,114770.0,114760.0,0.62549971]
[1757953728051,0.67091614,114770.0,114760.0,0.31556]
[1757953729257,0.67091614,114770.0,114760.0,0.62549971]
[1757953730652,0.67091614,114770.0,114760.0,0.63515971]
[1757953734357,0.67091614,114770.0,114760.0,0.62549971]
[1757953737252,0.67091614,114770.0,114760.0,0.33549971]
[1757953737451,0.67091614,114770.0,114760.0,0.59549971]
[1757953739047,0.67091614,114770.0,114760.0,0.28556]
[1757953739254,0.67091614,114770.0,114760.0,0.59549971]
[1757953742954,0.67091614,114770.0,114760.0,0.28556]
[1757953743159,0.67091614,114770.0,114760.0,0.63549971]
[1757953743359,0.6708896,114770.0,114760.0,0.63549971]
[1757953743567,0.6708896,114770.0,114760.0,0.57549971]
[1757953744065,0.64889,114770.0,114760.0,0.57549971]
[1757953744263,0.67088964,114770.0,114760.0,0.57549971]
[1757953744558,1.47320964,114770.0,114760.0,0.57549971]
[1757953745162,1.47320964,114770.0,114760.0,0.26556]
[1757953745350,1.47320964,114770.0,114760.0,0.57549971]
[1757953745557,1.47316964,114770.0,114760.0,0.57549971]
[1757953745755,1.47316964,114770.0,114760.0,0.33549971]
[1757953746360,1.47316964,114770.0,114760.0,0.02556]
[1757953746861,1.47316964,114770.0,114760.0,0.33549971]
[1757953748061,1.55043761,114770.0,114760.0,0.004]
[1757953748263,1.83177364,114770.0,114760.0,0.054]
[1757953748962,1.02949364,114770.0,114760.0,0.054]
[1757953749163,1.83173364,114770.0,114760.0,0.07552]
[1757953750565,1.83173364,114770.0,114760.0,0.054]
[1757953752262,1.83173364,114770.0,114760.0,0.004]
[1757953752462,1.87863928,114770.0,114760.0,0.004]
[1757953753658,1.56865957,114770.0,114760.0,0.02552]
[1757953753856,1.87859928,114770.0,114760.0,0.02552]
[1757953755868,0.76645957,114770.0,114760.0,0.02552]
[1757953756070,1.87855928,114770.0,114760.0,0.02552]
[1757953756570,1.56861957,114770.0,114760.0,0.02552]
[1757953756769,1.87855928,114770.0,114760.0,0.02552]
[1757953756969,1.07639928,114770.0,114760.0,0.02552]
[1757953757169,1.87851928,114770.0,114760.0,0.28552]
[1757953757375,1.31857957,114770.0,114760.0,0.62545971]
[1757953757665,1.27167393,114770.0,114760.0,0.62545971]
[1757953757878,1.27167393,114770.0,114760.0,0.33545971]
[1757953758269,1.27167393,114770.0,114760.0,0.58545971]
[1757953758469,1.27167393,114770.0,114760.0,0.33545971]
[1757953758773,1.27167393,114770.0,114760.0,0.61545971]
[1757953758972,1.27167393,114770.0,114760.0,0.57545971]
[1757953761371,0.46955393,114770.0,114760.0,0.57545971]
[1757953761568,1.27163393,114770.0,114760.0,0.57545971]
[1757953761976,0.46955393,114770.0,114760.0,0.57545971]
[1757953762174,1.27163393,114770.0,114760.0,0.57545971]
[1757953762474,0.46955393,114770.0,114760.0,0.57545971]
[1757953762775,1.27163393,114770.0,114760.0,0.57545971]
[1757953763776,1.27159393,114770.0,114760.0,0.57545971]
[1757953763979,0.46955393,114770.0,114760.0,0.57545971]
[1757953764275,1.27159393,114770.0,114760.0,0.57545971]
[1757953765178,0.46955393,114770.0,114760.0,0.57545971]
[1757953765373,1.2402579,114770.0,114760.0,0.57545971]
[1757953765672,0.10875393,114770.0,114760.0,0.57545971]
[1757953766178,0.0774179,114770.0,114760.0,0.57545971]
[1757953772886,0.0774179,114770.0,114760.0,0.26552]
[1757953773086,0.0774179,114770.0,114760.0,0.57545971]
[1757953773381,0.0774179,114770.0,114760.0,0.26552]
[1757953773588,0.0774179,114770.0,114760.0,0.57545971]
[1757953778088,0.0774179,114770.0,114760.0,0.26552]
[1757953778293,0.0774179,114770.0,114760.0,0.57545971]
[1757953778591,0.0774179,114770.0,114760.0,0.33545971]
[1757953779697,0.0774179,114770.0,114760.0,0.02552]
[1757953779889,0.0774179,114770.0,114760.0,0.64558282]
[1757953780085,0.0774179,114770.0,114760.0,0.90558282]
[1757953780797,0.0774179,114770.0,114760.0,0.91558282]
[1757953781896,0.0774179,114770.0,114760.0,0.64558282]
[1757953782097,0.0774179,114770.0,114760.0,0.89558282]
[1757953783298,0.06008964,114770.0,114760.0,0.89558282]
[1757953787498,0.06008964,114770.0,114760.0,0.27552]
[1757953787700,0.37012105,114770.0,114760.0,0.89558282]
[1757953787909,0.06008964,114770.0,114760.0,0.89558282]
[1757953788193,0.37012105,114770.0,114760.0,0.89558282]
[1757953789001,0.06008964,114770.0,114760.0,0.89558282]
[1757953791901,0.37012105,114770.0,114760.0,0.27552]
[1757953792101,1.01225708,114770.0,114760.0,0.254]
[1757953792602,1.01225708,114770.0,114760.0,0.56403141]
[1757953792800,1.01225708,114770.0,114760.0,0.36403141]
[1757953793617,1.01225708,114770.0,114760.0,0.054]
[1757953793908,1.01225708,114770.0,114760.0,0.36403141]
[1757953794501,1.81365708,114770.0,114760.0,0.38516141]
[1757953795007,1.50362567,114770.0,114760.0,0.38516141]
[1757953795308,1.81365708,114770.0,114760.0,0.38516141]
[1757953795904,1.01225708,114770.0,114760.0,0.38516141]
[1757953796104,1.81361708,114770.0,114760.0,0.38516141]
[1757953798013,1.01225708,114770.0,114760.0,0.38516141]
[1757953798207,1.81361708,114770.0,114760.0,0.33516141]
[1757953798511,1.81361708,114770.0,114760.0,0.38516141]
[1757953800210,1.86052272,114770.0,114760.0,0.33516141]